bitfinex/quotes_BTCUSD_20250225
["timestamp","ask_amount","ask_price","bid_price","bid_amount"]
[1740496000891,0.0821,87270.0,87242.0,0.182]
[1740496001094,0.00114591,87269.0,87242.0,0.182]
[1740496001411,0.36702298,87253.0,87242.0,0.182]
[1740496001984,0.11374753,87252.0,87242.0,0.182]
[1740496002403,0.0825502,87292.0,87251.0,0.099]
[1740496002757,0.00114591,87271.0,87242.0,0.182]
[1740496002962,0.48077051,87263.0,87242.0,0.182]
[1740496003273,0.48077051,87263.0,87248.0,0.099]
[1740496003472,0.0825502,87292.0,87257.0,0.099]
[1740496003629,0.0008502,87292.0,87281.0,0.229144]
[1740496003837,0.0008502,87292.0,87291.0,0.270839]
[1740496004091,0.0008502,87292.0,87291.0,0.099]
[1740496004393,0.0008502,87292.0,87291.0,0.3016033]
[1740496004550,0.0008502,87292.0,87291.0,0.399]
[1740496004940,0.0008502,87292.0,87291.0,0.54717553]
[1740496005380,0.0008502,87292.0,87291.0,0.44817553]
[1740496005599,0.0008502,87292.0,87291.0,0.54717553]
[1740496007097,0.0008502,87342.0,87324.0,0.099]
[1740496007390,0.0008502,87342.0,87322.0,0.099]
[1740496007391,0.48077051,87341.0,87322.0,0.099]
[1740496007627,0.48077051,87340.0,87317.0,0.18192]
[1740496007774,0.48077051,87340.0,87317.0,0.28092]
[1740496007972,0.48077051,87340.0,87317.0,0.18192]
[1740496007973,0.36702298,87331.0,87317.0,0.18192]
[1740496008154,0.36702298,87322.0,87317.0,0.18192]
[1740496008373,0.11374753,87319.0,87317.0,0.18192]
[1740496008554,0.11374753,87318.0,87317.0,0.18192]
[1740496009582,0.19329344,87318.0,87289.0,0.034432]
[1740496009822,0.19329344,87318.0,87273.0,0.00160398]
[1740496009823,0.36702298,87298.0,87273.0,0.00160398]
[1740496010065,0.36702298,87298.0,87264.0,0.099]
[1740496010066,0.11374753,87293.0,87264.0,0.099]
[1740496010194,0.36702298,87289.0,87263.0,0.034442]
[1740496010554,0.11374753,87284.0,87264.0,0.0016041]
[1740496010764,0.36702298,87279.0,87259.0,0.18188]
[1740496010966,0.36702298,87289.0,87271.0,0.099]
[1740496011101,0.11374753,87288.0,87259.0,0.18188]
[1740496011445,0.11374753,87288.0,87260.0,0.099]
[1740496011446,0.00114591,87287.0,87260.0,0.099]
[1740496011745,0.11374753,87286.0,87264.0,0.099]
[1740496012087,0.11374753,87286.0,87259.0,0.18188]
[1740496012438,0.36702298,87289.0,87259.0,0.18188]
[1740496012439,0.36702298,87279.0,87259.0,0.18188]
[1740496012647,0.11374753,87278.0,87265.0,0.099]
[1740496012804,0.11374753,87278.0,87259.0,0.18188]
[1740496013207,0.36702298,87277.0,87259.0,0.18188]
[1740496013404,0.36702298,87268.0,87233.0,0.099]
[1740496013616,0.36702298,87268.0,87228.0,0.18188]
[1740496013617,0.11374753,87264.0,87247.0,0.099]
[1740496013817,0.11374753,87264.0,87243.0,0.099]
[1740496014016,0.11374753,87264.0,87247.0,0.099]
[1740496014235,0.048,87302.0,87260.0,0.099]
[1740496014450,0.11374753,87288.0,87273.0,0.099]
[1740496014821,0.0008471,87298.0,87291.0,0.099]
[1740496015055,0.0008471,87298.0,87284.0,0.0016036]
[1740496015202,0.0008471,87298.0,87284.0,0.099]
[1740496015556,0.0008471,87298.0,87292.0,0.099]
[1740496015759,0.0008471,87298.0,87297.0,0.099]
[1740496015915,0.0008471,87298.0,87297.0,0.38457453]
[1740496016115,0.0008471,87298.0,87297.0,0.68457453]
[1740496016724,0.0118082,87317.0,87297.0,0.51274753]
[1740496016925,0.0118082,87317.0,87316.0,0.399]
[1740496017125,0.0118082,87317.0,87316.0,0.58088]
[1740496017546,0.0118082,87317.0,87316.0,0.18188]
[1740496017729,0.12555573,87317.0,87316.0,0.18188]
[1740496017960,0.0118082,87317.0,87316.0,0.28088]
[1740496018788,0.12555573,87317.0,87316.0,0.18188]
[1740496018990,0.0118082,87317.0,87316.0,0.18188]
[1740496020464,0.12555573,87317.0,87316.0,0.18188]
[1740496020661,0.12555573,87317.0,87267.0,0.18551198]
[1740496020885,0.11374753,87289.0,87267.0,0.00367198]
[1740496021108,0.53842262,87280.0,87267.0,0.00367198]
[1740496021313,0.1256,87279.0,87267.0,0.00367198]
[1740496021516,0.00114591,87278.0,87267.0,0.00367198]
[1740496021815,0.11374753,87277.0,87261.0,0.099]
[1740496021954,0.0797,87300.0,87264.0,0.099]
[1740496022153,0.11374753,87289.0,87278.0,0.099]
[1740496022377,0.00114591,87288.0,87269.0,0.099]
[1740496022597,0.00114591,87288.0,87238.0,0.031729]
[1740496022598,0.11374753,87287.0,87279.0,0.099]
[1740496022800,0.3,87326.0,87289.0,0.099]
[1740496023001,0.11374753,87307.0,87296.0,0.01454085]
[1740496023157,0.00100069,87319.0,87316.0,0.099]
[1740496023374,0.00100069,87319.0,87316.0,0.11354085]
[1740496023774,0.00100069,87319.0,87298.0,0.29538085]
[1740496024133,0.11374753,87316.0,87299.0,0.00160334]
[1740496024295,0.11374753,87316.0,87267.0,0.0016034]
[1740496024658,0.11374753,87316.0,87264.0,0.18184]
[1740496024659,0.20651415,87315.0,87287.0,0.011808]
[1740496024826,0.0008467,87292.0,87279.0,0.0016934]
[1740496025207,0.11374753,87280.0,87279.0,0.0016934]
[1740496025546,0.0785,87270.0,87221.0,0.034456]
[1740496025791,0.09162071,87240.0,87221.0,0.034456]
[1740496025973,0.0458,87269.0,87222.0,0.00160477]
[1740496026161,0.09162071,87297.0,87228.0,0.0484]
[1740496026365,0.09162071,87297.0,87241.0,0.01454085]
[1740496026366,0.11374753,87291.0,87241.0,0.01454085]
[1740496026567,0.11489344,87291.0,87242.0,0.11374753]
[1740496026765,0.00100069,87319.0,87251.0,0.3]
[1740496026766,0.00114591,87305.0,87251.0,0.3]
[1740496026968,0.00114591,87305.0,87241.0,0.01454085]
[1740496026969,0.00114591,87314.0,87255.0,0.01454085]
[1740496027201,0.00114591,87304.0,87255.0,0.01454085]
[1740496027470,0.09162071,87305.0,87249.0,0.25]
[1740496027471,0.20536824,87285.0,87249.0,0.25]
[1740496027675,0.11374753,87280.0,87249.0,0.25]
[1740496027850,0.11374753,87275.0,87249.0,0.25]
[1740496028053,0.11374753,87266.0,87243.0,0.00368555]
[1740496028222,0.09162071,87267.0,87243.0,0.00368555]
[1740496028223,0.11489344,87265.0,87243.0,0.00368555]
[1740496028420,0.11374753,87253.0,87243.0,0.00368555]
[1740496028654,0.09162071,87244.0,87207.0,0.00368555]
[1740496028848,0.11374753,87243.0,87207.0,0.00368555]
[1740496029072,0.11374753,87243.0,87208.0,0.034461]
[1740496029389,0.09162071,87244.0,87207.0,0.00368555]
[1740496029390,0.11374753,87226.0,87207.0,0.00368555]
[1740496029617,0.09162071,87235.0,87207.0,0.00368555]
[1740496029833,0.11374753,87234.0,87207.0,0.00368555]
[1740496030239,0.09162071,87244.0,87207.0,0.00368555]
[1740496030240,0.20536824,87233.0,87207.0,0.00368555]
[1740496030351,0.11374753,87226.0,87203.0,0.0016934]
[1740496030771,0.09162071,87224.0,87203.0,0.0016934]
[1740496031169,0.11374753,87220.0,87203.0,0.0016934]
[1740496031542,0.09162071,87206.0,87203.0,0.0016934]
[1740496031690,0.11374753,87204.0,87203.0,0.0016934]
[1740496031885,0.30629435,87204.0,87203.0,0.0016934]
[1740496032111,0.11374753,87204.0,87203.0,0.0016934]
[1740496032314,0.229349,87203.0,87191.0,0.0016934]
[1740496032515,0.95273928,87192.0,87191.0,0.0016934]
[1740496032717,0.11374753,87192.0,87191.0,0.0016934]
[1740496033317,0.1284,87191.0,87160.0,0.00368555]
[1740496033533,0.48070528,87177.0,87133.0,0.25]
[1740496033734,0.48070528,87177.0,87118.0,0.0046]
[1740496033735,0.172097,87160.0,87118.0,0.0046]
[1740496033941,0.11374753,87156.0,87117.0,0.00368555]
[1740496034543,0.1314509,87156.0,87117.0,0.00368555]
[1740496034713,0.11374753,87156.0,87117.0,0.00368555]
[1740496035110,0.11374753,87156.0,87109.0,0.0046]
[1740496035310,0.11374753,87156.0,87094.0,0.36695775]
[1740496035311,0.42512228,87156.0,87094.0,0.36695775]
[1740496035524,0.42512228,87156.0,87088.0,0.0017004]
[1740496035525,0.1,87140.0,87088.0,0.0017004]
[1740496035731,0.11374753,87115.0,87088.0,0.0017004]
[1740496036242,0.1,87161.0,87103.0,0.01454085]
[1740496036465,0.11374753,87136.0,87103.0,0.01623445]
[1740496036667,0.11374753,87136.0,87105.0,0.36695775]
[1740496037084,0.11374753,87136.0,87106.0,0.01454085]
[1740496038040,0.11374753,87136.0,87104.0,0.01454085]
[1740496038367,0.11374753,87126.0,87103.0,0.0016936]
[1740496038571,0.09580134,87149.0,87105.0,0.3]
[1740496038774,0.11374753,87144.0,87118.0,0.01454085]
[1740496039001,0.11374753,87148.0,87126.0,0.36695775]
[1740496039201,0.09580134,87149.0,87148.0,0.3]
[1740496039416,0.07180134,87149.0,87136.0,0.01454085]
[1740496039955,0.07180134,87149.0,87138.0,0.01454085]
[1740496040133,0.07180134,87149.0,87109.0,0.1]
[1740496040340,0.07180134,87149.0,87144.0,0.36695775]
[1740496040538,0.48054875,87214.0,87145.0,0.01454085]
[1740496040539,0.36695775,87195.0,87145.0,0.01454085]
[1740496040739,0.11374753,87178.0,87146.0,0.00160632]
[1740496040940,0.11374753,87178.0,87136.0,0.3]
[1740496040941,0.11374753,87178.0,87148.0,0.01454085]
[1740496041143,0.11374753,87178.0,87133.0,0.034492]
[1740496041305,0.11374753,87175.0,87133.0,0.034492]
[1740496041506,0.11374753,87175.0,87134.0,0.11535385]
[1740496041723,0.11374753,87175.0,87136.0,0.01454085]
[1740496041926,0.11374753,87175.0,87133.0,0.034492]
[1740496042168,0.28583753,87164.0,87133.0,0.034492]
[1740496042386,0.3178,87163.0,87103.0,0.0016936]
[1740496042581,0.229528,87135.0,87103.0,0.0016936]
[1740496042787,0.11374753,87141.0,87103.0,0.0016936]
[1740496044100,0.11374753,87130.0,87103.0,0.0016936]
[1740496044349,0.11374753,87127.0,87103.0,0.0016936]
[1740496044553,0.11374753,87117.0,87103.0,0.0016936]
[1740496044777,0.11374753,87114.0,87103.0,0.0016936]
[1740496044983,0.11374753,87113.0,87103.0,0.0016936]
[1740496045191,0.11374753,87113.0,87012.0,0.38273562]
[1740496045192,0.229613,87103.0,87050.0,7e-05]
[1740496045393,0.58598453,87089.0,87050.0,7e-05]
[1740496045575,0.11374753,87089.0,87050.0,7e-05]
[1740496045776,0.28598453,87089.0,87050.0,7e-05]
[1740496045904,0.11374753,87089.0,87050.0,7e-05]
[1740496047277,0.3,87088.0,87050.0,7e-05]
[1740496047529,0.11374753,87067.0,87050.0,7e-05]
[1740496047658,0.11374753,87066.0,87050.0,7e-05]
[1740496048865,0.11374753,87051.0,87050.0,7e-05]
[1740496049432,0.0464,87095.0,87050.0,7e-05]
[1740496049589,0.11374753,87084.0,87050.0,7e-05]
[1740496049791,0.11374753,87084.0,87050.0,0.000918]
[1740496050006,0.11374753,87076.0,87050.0,0.000918]
[1740496050202,0.11374753,87065.0,87050.0,0.000918]
[1740496050493,0.11374753,87061.0,87050.0,0.000918]
[1740496050662,0.11374753,87051.0,87050.0,0.000918]
[1740496051745,0.012979,87091.0,87050.0,0.000918]
[1740496051863,0.11374753,87090.0,87050.0,0.000918]
[1740496052070,0.11374753,87090.0,87052.0,0.36695775]
[1740496052291,0.36695775,87114.0,87052.0,0.36695775]
[1740496052292,0.11374753,87088.0,87052.0,0.36695775]
[1740496052709,0.11374753,87088.0,87061.0,0.36695775]
[1740496053136,0.11374753,87085.0,87050.0,0.000918]
[1740496053437,0.11374753,87085.0,87051.0,0.48070528]
[1740496053636,0.11374753,87085.0,87051.0,0.40148275]
[1740496054121,0.11374753,87085.0,87051.0,0.36695775]
[1740496054293,0.46695775,87114.0,87050.0,0.000918]
[1740496054294,0.11374753,87070.0,87050.0,0.000918]
[1740496054495,0.36695775,87084.0,87050.0,0.000918]
[1740496054496,0.11374753,87064.0,87050.0,0.000918]
[1740496055174,0.229593,87111.0,87050.0,0.000918]
[1740496055375,0.1,87115.0,87050.0,0.000918]
[1740496055376,0.11374753,87088.0,87050.0,0.000918]
[1740496055789,0.11374753,87088.0,87051.0,0.11374753]
[1740496056029,0.11374753,87088.0,87053.0,0.3]
[1740496056266,0.220672,87123.0,87055.0,0.3]
[1740496056471,0.0794,87138.0,87069.0,0.3458]
[1740496056472,0.11374753,87119.0,87069.0,0.3458]
[1740496056681,0.0471,87148.0,87076.0,0.1]
[1740496056883,0.034522,87154.0,87106.0,0.229604]
[1740496057093,0.001696,87155.0,87119.0,0.3]
[1740496057303,0.001696,87155.0,87109.0,0.0779]
[1740496057517,0.11374753,87154.0,87113.0,0.11374753]
[1740496057727,0.001696,87155.0,87120.0,0.3]
[1740496057942,0.001696,87155.0,87119.0,0.11374753]
[1740496057943,0.001696,87155.0,87144.0,0.36695775]
[1740496058147,0.001696,87155.0,87136.0,0.3]
[1740496058563,0.001696,87155.0,87135.0,0.36695775]
[1740496058564,0.001696,87155.0,87149.0,0.36695775]
[1740496058806,0.001696,87155.0,87150.0,0.30160597]
[1740496058974,0.001696,87155.0,87152.0,0.3]
[1740496059171,0.001696,87155.0,87148.0,0.18224]
[1740496059792,0.001696,87155.0,87149.0,0.30160615]
[1740496060005,0.001696,87155.0,87148.0,0.18224]
[1740496060428,0.001696,87155.0,87130.0,0.1]
[1740496060633,0.001696,87155.0,87154.0,0.3]
[1740496061038,0.0016974,87176.0,87175.0,0.3]
[1740496061447,0.0016974,87176.0,87175.0,0.11374753]
[1740496061853,0.0016974,87176.0,87156.0,0.3]
[1740496062061,0.09179365,87205.0,87157.0,0.11374753]
[1740496062265,0.09179365,87205.0,87139.0,0.0773]
[1740496062266,0.11374753,87196.0,87139.0,0.0773]
[1740496062466,0.11374753,87195.0,87140.0,0.11535355]
[1740496062623,0.27392933,87220.0,87147.0,0.11374753]
[1740496062807,0.09179365,87221.0,87168.0,0.3]
[1740496063009,0.171983,87218.0,87151.0,0.1]
[1740496063216,0.09179365,87221.0,87159.0,0.3]
[1740496063452,0.11374753,87219.0,87161.0,0.3]
[1740496063661,0.11374753,87219.0,87163.0,0.3]
[1740496063861,0.09179365,87199.0,87131.0,0.1]
[1740496064060,0.11374753,87198.0,87141.0,0.3]
[1740496064260,0.11374753,87198.0,87142.0,0.00160603]
[1740496064462,0.11374753,87198.0,87143.0,0.11374753]
[1740496064664,0.11374753,87198.0,87102.0,0.0466]
[1740496064665,0.229405,87182.0,87102.0,0.0466]
[1740496064818,0.09179365,87142.0,87080.0,0.1822]
[1740496065020,0.09179365,87142.0,87082.0,0.034503]
[1740496065219,0.09179365,87126.0,87083.0,0.11374753]
[1740496065421,0.11374753,87131.0,87081.0,0.0016073]
[1740496065653,0.11374753,87131.0,87084.0,0.0016073]
[1740496065862,0.11374753,87131.0,87081.0,0.3]
[1740496066057,0.11374753,87131.0,87082.0,0.11374753]
[1740496066259,0.09179365,87130.0,87082.0,0.11374753]
[1740496066536,0.11374753,87129.0,87082.0,0.11374753]
[1740496067049,0.11374753,87122.0,87080.0,0.1822]
[1740496067256,0.09179365,87109.0,87080.0,0.1822]
[1740496068090,0.09179365,87097.0,87080.0,0.1822]
[1740496068292,0.11374753,87083.0,87050.0,0.00252581]
[1740496068546,0.11374753,87083.0,87050.0,0.000918]
[1740496069534,0.20554118,87079.0,87050.0,0.000918]
[1740496069850,0.11374753,87077.0,87050.0,0.000918]
[1740496070884,0.11374753,87073.0,87050.0,0.000918]
[1740496071299,0.0469,87121.0,87051.0,0.11374753]
[1740496071524,0.11374753,87111.0,87062.0,0.11374753]
[1740496071894,0.0762,87136.0,87069.0,0.11374753]
[1740496072096,0.0762,87136.0,87083.0,0.3]
[1740496072298,0.11374753,87112.0,87053.0,0.0799]
[1740496072502,0.36752461,87117.0,87045.0,0.0462]
[1740496072503,0.11374753,87104.0,87045.0,0.0462]
[1740496072703,0.229613,87103.0,87050.0,0.00252592]
[1740496072905,0.172228,87094.0,87050.0,0.00252592]
[1740496073084,0.3,87116.0,87050.0,0.000918]
[1740496073085,0.36752461,87088.0,87050.0,0.000918]
[1740496073285,0.11374753,87087.0,87050.0,0.11466553]
[1740496073557,0.11374753,87087.0,87050.0,0.000918]
[1740496073952,0.36752461,87083.0,87050.0,0.000918]
[1740496074070,0.229704,87069.0,87050.0,0.000918]
[1740496074271,0.36752461,87057.0,87050.0,0.000918]
[1740496074475,0.11374753,87056.0,87050.0,0.000918]
[1740496074717,0.11374753,87054.0,87050.0,0.000918]
[1740496075984,0.172312,87051.0,87050.0,0.000918]
[1740496076341,0.11374753,87051.0,87050.0,0.000918]
[1740496078178,0.36752461,87074.0,87050.0,0.000918]
[1740496078381,0.11374753,87071.0,87050.0,0.000918]
[1740496078584,0.00100069,87105.0,87051.0,0.11374753]
[1740496078792,0.11374753,87087.0,87052.0,0.30160798]
[1740496078996,0.00100069,87105.0,87056.0,0.41374753]
[1740496079190,0.00100069,87105.0,87087.0,0.472241]
[1740496079391,0.00100069,87105.0,87087.0,0.3]
[1740496079650,0.00100069,87105.0,87064.0,0.11374753]
[1740496079825,0.11374753,87087.0,87033.0,0.01704]
[1740496080026,0.11374753,87087.0,87051.0,0.11374753]
[1740496080241,0.11374753,87084.0,87032.0,0.034527]
[1740496080430,0.11374753,87084.0,87052.0,0.3]
[1740496080631,0.11374753,87084.0,87053.0,0.11535559]
[1740496080868,0.00100069,87105.0,87054.0,0.00160789]
[1740496081018,0.00100069,87105.0,87088.0,0.3]
[1740496081219,0.00100069,87105.0,87087.0,0.3]
[1740496081220,0.00100069,87105.0,87104.0,0.472207]
[1740496081478,0.00100069,87105.0,87104.0,0.58595453]
[1740496081856,0.00100069,87105.0,87104.0,0.3]
[1740496082055,0.00100069,87105.0,87104.0,0.41374753]
[1740496082419,0.00100069,87105.0,87104.0,0.3]
[1740496082847,0.00100069,87105.0,87069.0,0.0497]
[1740496083050,0.11374753,87104.0,87070.0,0.11374753]
[1740496083418,0.00100069,87105.0,87071.0,0.3016076]
[1740496083560,0.00100069,87105.0,87104.0,0.172207]
[1740496083764,0.00100069,87105.0,87104.0,0.472207]
[1740496083962,0.00100069,87105.0,87104.0,0.3]
[1740496084169,0.095984,87109.0,87104.0,0.3]
[1740496084170,0.05757666,87109.0,87105.0,0.3]
[1740496084367,0.0774,87178.0,87115.0,0.229581]
[1740496084568,0.0774,87178.0,87122.0,0.3]
[1740496084789,0.11374753,87154.0,87108.0,0.11374753]
[1740496085003,0.20560916,87152.0,87108.0,0.11374753]
[1740496085237,0.11374753,87152.0,87109.0,0.3]
[1740496085480,0.09186163,87151.0,87101.0,0.0345]
[1740496085614,0.383,87144.0,87101.0,0.0345]
[1740496085820,0.09186163,87102.0,87063.0,0.18228]
[1740496086048,0.11374753,87096.0,87063.0,0.18228]
[1740496086390,0.0452,87131.0,87084.0,0.3]
[1740496086577,0.0452,87153.0,87108.0,0.172198]
[1740496086790,0.11374753,87150.0,87109.0,0.11535438]
[1740496086981,0.0016974,87176.0,87111.0,0.11374753]
[1740496087280,0.0016974,87176.0,87126.0,0.3]
[1740496087437,0.0016974,87176.0,87114.0,0.3]
[1740496087640,0.11374753,87169.0,87115.0,0.11374753]
[1740496087853,0.11374753,87169.0,87116.0,0.0016066]
[1740496088049,0.0016974,87176.0,87124.0,0.41374753]
[1740496088251,0.20560916,87173.0,87131.0,0.3]
[1740496088482,0.172085,87167.0,87131.0,0.3]
[1740496088813,0.00151497,87176.0,87132.0,0.11535398]
[1740496088992,0.00151497,87176.0,87133.0,0.3]
[1740496089199,0.00151497,87176.0,87126.0,0.0759]
[1740496089200,0.11374753,87175.0,87135.0,0.3]
[1740496089350,0.11374753,87175.0,87137.0,0.3]
[1740496089702,0.00151497,87176.0,87154.0,0.529478]
[1740496089833,0.00151497,87176.0,87156.0,0.229471]
[1740496090034,0.00151497,87176.0,87135.0,0.25]
[1740496090468,0.16154753,87175.0,87136.0,0.11374753]
[1740496090637,0.16154753,87175.0,87064.0,0.0814]
[1740496090638,0.09186163,87156.0,87104.0,0.229608]
[1740496090842,0.18596788,87174.0,87105.0,0.11535454]
[1740496090843,0.16966163,87174.0,87105.0,0.11535454]
[1740496091038,0.16966163,87174.0,87106.0,0.076]
[1740496091039,0.09186163,87174.0,87106.0,0.076]
[1740496091285,0.09186163,87174.0,87105.0,0.11374753]
[1740496091286,0.09186163,87147.0,87105.0,0.11374753]
[1740496091495,0.09186163,87156.0,87106.0,0.00160686]
[1740496091702,0.09186163,87156.0,87105.0,0.11374753]
[1740496091953,0.09186163,87156.0,87045.0,0.2]
[1740496091954,0.09186163,87141.0,87069.0,0.1]
[1740496092157,0.11374753,87140.0,87092.0,0.3]
[1740496092302,0.11374753,87140.0,87095.0,0.11374753]
[1740496092501,0.09186163,87141.0,87092.0,0.0086914]
[1740496092502,0.09186163,87174.0,87101.0,0.3]
[1740496092722,0.09186163,87174.0,87121.0,0.3]
[1740496092926,0.09186163,87174.0,87132.0,0.3]
[1740496093127,0.0487,87196.0,87124.0,0.11374753]
[1740496093128,0.0487,87196.0,87163.0,0.172091]
[1740496093326,0.0487,87196.0,87163.0,0.00160601]
[1740496093599,0.0825,87212.0,87164.0,0.11374753]
[1740496093768,0.0825,87212.0,87154.0,0.3]
[1740496093983,0.0825,87212.0,87151.0,0.00857396]
[1740496093984,0.0188974,87217.0,87165.0,0.11374753]
[1740496094170,0.0016974,87217.0,87165.0,0.11374753]
[1740496094392,0.0016974,87217.0,87171.0,0.11374753]
[1740496094596,0.0016974,87217.0,87185.0,0.172046]
[1740496094732,0.0016974,87217.0,87186.0,0.30160531]
[1740496094929,0.0016974,87217.0,87191.0,0.3]
[1740496095153,0.0016974,87217.0,87174.0,0.11374753]
[1740496095154,0.0016974,87217.0,87190.0,0.3]
[1740496095330,0.11374753,87216.0,87175.0,0.00880884]
[1740496095532,0.0016974,87217.0,87151.0,0.09092871]
[1740496095533,0.36708403,87205.0,87151.0,0.09092871]
[1740496095887,0.11374753,87204.0,87168.0,0.3]
[1740496096032,0.36708403,87205.0,87168.0,0.3]
[1740496096374,0.36708403,87214.0,87168.0,0.3]
[1740496096605,0.36708403,87214.0,87181.0,0.3]
[1740496096810,0.0016974,87217.0,87167.0,0.034472]
[1740496096811,0.0016974,87217.0,87183.0,0.3]
[1740496096947,0.0016974,87217.0,87192.0,0.11374753]
[1740496097157,0.0016974,87217.0,87215.0,0.3]
[1740496098025,0.0016974,87217.0,87195.0,0.00844166]
[1740496098218,0.0008487,87214.0,87195.0,0.00844166]
[1740496098416,0.0008487,87214.0,87196.0,0.00160519]
[1740496098641,0.0008487,87214.0,87193.0,0.30873668]
[1740496098784,0.0008487,87214.0,87189.0,0.3]
[1740496098981,0.0008487,87214.0,87190.0,0.00160528]
[1740496099189,0.0008487,87214.0,87191.0,0.00160511]
[1740496099431,0.11374753,87213.0,87175.0,0.00855639]
[1740496099777,0.36708403,87200.0,87171.0,0.25]
[1740496099991,0.172062,87178.0,87147.0,0.18212]
[1740496100218,0.0451,87199.0,87148.0,0.00160618]
[1740496100497,0.0451,87199.0,87133.0,0.01429624]
[1740496100498,0.0451,87199.0,87135.0,0.00160607]
[1740496100717,0.0451,87199.0,87136.0,0.11535365]
[1740496100718,0.36708403,87177.0,87136.0,0.11535365]
[1740496100934,0.36708403,87177.0,87050.0,1.13372077]
[1740496100935,0.11374753,87174.0,87137.0,0.11374753]
[1740496101166,0.172089,87165.0,87120.0,0.00882467]
[1740496101362,0.11374753,87174.0,87125.0,0.01400205]
[1740496101571,0.11374753,87174.0,87127.0,0.229549]
[1740496101756,0.36708403,87168.0,87129.0,0.11374753]
[1740496101954,0.11374753,87167.0,87130.0,0.00160647]
[1740496102155,0.36708403,87177.0,87132.0,0.229536]
[1740496102333,0.11374753,87176.0,87136.0,0.3]
[1740496102535,0.01419678,87192.0,87137.0,0.11374753]
[1740496102744,0.01419678,87192.0,87138.0,0.3]
[1740496102745,0.11374753,87191.0,87138.0,0.3]
[1740496102992,0.11374753,87191.0,87148.0,0.3]
[1740496103103,0.36708403,87209.0,87156.0,0.3]
[1740496103346,0.36708403,87209.0,87169.0,0.3]
[1740496103697,0.36708403,87209.0,87145.0,0.00882467]
[1740496103698,0.36708403,87191.0,87156.0,0.034477]
[1740496103904,0.11374753,87190.0,87145.0,0.00882467]
[1740496104047,0.11374753,87190.0,87148.0,0.3]
[1740496104252,0.11374753,87190.0,87150.0,0.3]
[1740496104447,0.172107,87156.0,87098.0,0.229624]
[1740496104767,0.0476,87153.0,87093.0,0.00856439]
[1740496105014,0.0476,87153.0,87095.0,0.229634]
[1740496105237,0.0476,87153.0,87088.0,0.0361984]
[1740496105387,0.09177101,87130.0,87089.0,0.11374753]
[1740496105618,0.09177101,87121.0,87088.0,0.0016974]
[1740496105837,0.10589403,87121.0,87088.0,0.0016974]
[1740496106200,0.09177101,87121.0,87088.0,0.0016974]
[1740496106403,0.09177101,87102.0,87088.0,0.0016974]
[1740496106748,0.0478,87109.0,87088.0,0.0016974]
[1740496106882,0.09177101,87100.0,87088.0,0.0016974]
[1740496107079,0.11374753,87099.0,87088.0,0.0016974]
[1740496107285,0.09177101,87091.0,87088.0,0.0016974]
[1740496107491,0.0493,87132.0,87089.0,0.11374753]
[1740496107697,0.0493,87158.0,87090.0,0.30160721]
[1740496107891,0.0493,87158.0,87091.0,0.11535426]
[1740496107892,0.09177101,87146.0,87091.0,0.11535426]
[1740496108110,0.09177101,87130.0,87088.0,0.0016974]
[1740496108339,0.172173,87122.0,87088.0,0.0016974]
[1740496108669,0.09177101,87114.0,87088.0,0.0016974]
[1740496108874,0.09177101,87105.0,87088.0,0.0016974]
[1740496109088,0.11374753,87104.0,87088.0,0.0016974]
[1740496110151,0.09177101,87130.0,87089.0,0.11374753]
[1740496110385,0.09177101,87121.0,87088.0,0.0016974]
[1740496110607,0.11374753,87120.0,87088.0,0.0016974]
[1740496110919,0.11374753,87120.0,87090.0,0.3]
[1740496111128,0.09177101,87130.0,87090.0,0.3]
[1740496111372,0.09177101,87130.0,87091.0,0.00160711]
[1740496111572,0.0497,87154.0,87092.0,0.3]
[1740496111741,0.11374753,87153.0,87114.0,0.3]
[1740496112077,0.09177101,87147.0,87115.0,0.11374753]
[1740496112279,0.11374753,87146.0,87115.0,0.11374753]
[1740496112479,0.11374753,87146.0,87116.0,0.3]
[1740496112634,0.0497,87154.0,87118.0,0.3]
[1740496112836,0.0497,87154.0,87117.0,0.11374753]
[1740496112837,0.1324,87176.0,87140.0,0.3]
[1740496113063,0.09177101,87190.0,87142.0,0.3]
[1740496113251,0.11374753,87189.0,87144.0,0.3]
[1740496113430,0.11374753,87189.0,87146.0,0.3]
[1740496113631,0.0976202,87193.0,87148.0,0.3]
[1740496113834,0.0976202,87193.0,87162.0,0.3]
[1740496114068,0.0976202,87193.0,87163.0,0.11535315]
[1740496114221,0.229323,87213.0,87164.0,0.3]
[1740496114420,0.09177101,87200.0,87166.0,0.3]
[1740496114676,0.09177101,87190.0,87166.0,0.3]
[1740496114907,0.09177101,87190.0,87147.0,0.034478]
[1740496115060,0.11374753,87189.0,87148.0,0.11374753]
[1740496115275,0.11374753,87189.0,87147.0,0.034478]
[1740496115619,0.11374753,87189.0,87132.0,0.00884935]
[1740496115620,0.11374753,87189.0,87133.0,0.00160627]
[1740496115790,0.28578753,87189.0,87134.0,0.00160618]
[1740496116010,0.09177101,87190.0,87134.0,0.00160618]
[1740496116011,0.09177101,87178.0,87134.0,0.11374753]
[1740496116233,0.11374753,87177.0,87134.0,0.14822553]
[1740496116416,0.09177101,87190.0,87141.0,0.11374753]
[1740496116639,0.09177101,87200.0,87147.0,0.41374753]
[1740496116831,0.09177101,87200.0,87156.0,0.00857113]
[1740496117038,0.11374753,87199.0,87156.0,0.00857113]
[1740496117475,0.11374753,87199.0,87158.0,0.3]
[1740496117692,0.09177101,87182.0,87151.0,0.00844844]
[1740496117908,0.09177101,87173.0,87151.0,0.00844844]
[1740496118107,0.11374753,87172.0,87151.0,0.00844844]
[1740496118642,0.09177101,87163.0,87136.0,0.01983387]
[1740496118843,0.09177101,87154.0,87136.0,0.01983387]
[1740496119169,0.11374753,87153.0,87136.0,0.01983387]
[1740496119365,0.09177101,87141.0,87093.0,0.0317211]
[1740496119530,0.11374753,87140.0,87099.0,0.031729]
[1740496119728,0.11374753,87140.0,87100.0,0.11374753]
[1740496119934,0.0485,87147.0,87101.0,0.00160702]
[1740496120134,0.09177101,87143.0,87102.0,0.11374753]
[1740496120347,0.11374753,87142.0,87102.0,0.11374753]
[1740496120546,0.09177101,87134.0,87102.0,0.11374753]
[1740496120843,0.09177101,87143.0,87094.0,0.01984526]
[1740496120844,0.20551854,87133.0,87094.0,0.01984526]
[1740496121087,0.20551854,87133.0,87095.0,0.11535463]